{"text_format":"1","workbook":"xlsx","n_sheets":5,"sheets":["高圧電気設備図面","改訂履歴","平面図","引込線立面図","単線結線図"],"not_rendered":{"charts":0,"images":0,"macros":1,"external_links":1,"defined_names":31,"comments":1,"pivot_tables":0},"unopened":[],"bounds":{"document_bytes":16777216,"sheet_cells":100000,"rows_first":2000,"rows_last":500,"rows_between":2000,"halvings":0,"cell_chars":16384,"cell_head_chars":4096},"cells_cut":0,"cells_raw":0,"read":"whole","date_system":"1900"}

{"sheet":"高圧電気設備図面","index":0,"n_rows":250,"n_cols":74,"rows_kept":250,"cut":false,"hidden":false,"merged":[[46,42,46,43],[44,42,44,43],[42,18,42,21],[46,18,46,21],[50,18,50,21],[54,18,54,26],[48,42,48,43],[10,18,10,24],[38,18,38,24],[38,33,38,42],[36,18,36,38],[40,21,40,25],[40,28,40,30],[40,33,40,35],[3,22,3,23],[3,25,3,28],[34,18,34,48],[28,18,28,30],[6,18,6,39],[8,18,8,39],[16,18,16,19],[16,34,16,38],[18,19,18,31],[20,18,20,19],[20,34,20,38],[22,19,22,31],[24,18,24,19],[24,34,24,38],[26,19,26,31],[30,18,30,48],[32,18,32,38],[12,34,12,38],[14,19,14,31],[12,18,12,19],[12,27,12,31],[16,27,16,31],[20,27,20,31],[24,27,24,31],[12,16,12,17],[38,1,38,2],[16,1,16,2],[16,16,16,17],[20,1,20,2],[20,16,20,17],[24,1,24,2],[24,16,24,17],[28,1,28,2],[10,1,10,2],[8,1,8,2],[6,1,6,2],[3,1,3,2],[12,1,12,2],[52,1,52,2],[42,1,42,2],[46,1,46,2],[30,1,30,2],[32,1,32,2],[36,1,36,2],[34,1,34,2],[44,1,44,2],[48,1,48,2],[40,1,40,2],[100,0,101,5],[100,6,101,10],[100,11,101,26],[100,27,101,32],[100,33,101,52],[62,9,62,30],[56,36,56,45],[56,1,56,2],[50,1,50,2],[91,0,93,52],[94,0,99,1],[94,2,96,5],[94,6,96,26],[94,27,99,32],[94,35,95,52],[96,45,96,52],[97,2,99,5],[97,6,99,26],[97,38,97,44],[98,33,99,52],[54,1,54,2],[84,21,84,28],[86,21,86,28],[86,30,86,33],[248,34,250,40],[248,41,248,42],[249,0,250,8],[249,9,250,17],[249,41,250,42],[163,0,164,7],[163,8,163,14],[163,15,164,26],[164,11,164,13],[165,0,166,7],[165,8,165,14],[165,15,166,26],[165,27,168,28],[165,29,166,32],[165,33,166,52],[245,0,246,8],[171,0,172,8],[215,0,216,8],[239,0,240,8],[166,11,166,13],[167,0,170,7],[167,8,167,14],[167,15,168,26],[170,11,170,13],[247,0,248,8],[247,9,248,15],[247,16,248,17],[155,23,156,24],[157,0,158,7],[157,8,158,18],[157,19,158,22],[157,23,158,24],[153,19,154,22],[170,8,170,9],[168,8,168,9],[166,8,166,9],[164,8,164,9],[245,9,246,17],[243,16,244,17],[243,0,244,8],[243,9,244,15],[159,0,160,7],[168,11,168,13],[155,0,156,7],[100,57,101,71],[109,56,115,57],[106,57,107,71],[174,57,175,71],[215,57,216,71],[167,29,168,32],[161,0,162,7],[156,45,156,52],[160,45,160,52],[161,33,162,42],[161,46,162,52],[155,27,158,30],[155,33,155,52],[159,33,159,52],[163,27,164,32],[163,33,164,38],[163,39,164,40],[163,41,164,44],[102,0,103,7],[153,8,154,12],[153,13,154,16],[153,17,154,18],[153,23,154,24],[155,8,156,22],[249,45,250,46],[249,49,250,50],[249,51,250,52],[248,45,248,46],[248,47,248,48],[248,49,248,50],[248,51,248,52],[249,47,250,48],[248,43,248,44],[249,43,250,44],[163,51,164,52],[163,45,164,46],[163,47,164,50],[167,33,168,52],[72,9,72,30],[64,9,64,30],[66,9,66,21],[68,9,68,15],[74,9,74,30],[76,9,76,21],[78,9,78,15],[88,25,88,28],[80,32,80,35],[80,40,80,43],[82,21,82,24],[84,30,84,33],[161,8,162,22],[161,23,162,24],[159,27,162,30],[157,33,158,42],[157,46,158,52],[159,8,160,18],[159,19,160,22],[159,23,160,24],[119,16,120,34],[189,16,190,34],[226,16,227,34],[239,9,240,15],[239,16,240,17],[241,0,242,8],[241,9,242,17],[169,8,169,14],[169,15,170,26],[153,0,154,7]]}
["電気設備図面_高圧"]
[null,"【入力項目】",null,null,null,null,null,null,null,null,null,null,null,null,null,null,null,null,null,null,null,null,null,null,"※入力チェックエラーでも保存可能"]
[]
[null,"◆",null,"引込線･計測器工事会社登録番号[必須]",null,null,null,null,null,null,null,null,null,null,null,null,null,null,null,null,null,null,"　",null,"-"]
[null,null,"※非組合員の方は「ZZ-999」と入力してください"]
[]
[null,"◆",null,"工事会社名[必須]"]
[]
[null,"◆",null,"工事会社住所[必須]"]
[]
[null,"◆",null,"工事会社電話番号[必須]"]
[null,null,null,null,null,null,null,null,null,null,null,null,null,null,null,null,null,null,null,null,1196888]
[null,"◆",null,"主任工事士[必須]",null,null,null,null,null,null,null,null,null,null,null,null,"第",null,null,null,"種電気工事士",null,null,null,null,null,null,"北海道",null,null,null,null,null,"第",null,null,null,null,null,"号"]
[]
[null,null,null,null,null,null,null,null,null,null,null,null,null,null,null,null,"氏名"]
[]
[null,"◆",null,"施工責任者[必須]",null,null,null,null,null,null,null,null,null,null,null,null,"第",null,null,null,"種電気工事士",null,null,null,null,null,null,"北海道",null,null,null,null,null,"第",null,null,null,null,null,"号"]
[]
[null,null,null,null,null,null,null,null,null,null,null,null,null,null,null,null,"氏名"]
[]
[null,"◆",null,"作業者",null,null,null,null,null,null,null,null,null,null,null,null,"第",null,null,null,"種電気工事士",null,null,null,null,null,null,"北海道",null,null,null,null,null,"第",null,null,null,null,null,"号"]
[]
[null,null,null,null,null,null,null,null,null,null,null,null,null,null,null,null,"氏名"]
[]
[null,"◆",null,"作業者",null,null,null,null,null,null,null,null,null,null,null,null,"第",null,null,null,"種電気工事士",null,null,null,null,null,null,"北海道",null,null,null,null,null,"第",null,null,null,null,null,"号"]
[]
[null,null,null,null,null,null,null,null,null,null,null,null,null,null,null,null,"氏名"]
[]
[null,"◆",null,"電気主任技術者氏名[必須]"]
[]
[null,"◆",null,"お客さま住所（施工場所）[必須]"]
[]
[null,"◆",null,"お客さま氏名[必須]"]
[]
[null,"◆",null,"注文者住所[必須]"]
[]
[null,"◆",null,"注文者氏名（名称）[必須]"]
[]
[null,"◆",null,"電気工事の種類[必須]",null,null,null,null,null,null,null,null,null,null,null,null,null,null,null,null,null,null,null,null,null,null,null,null,null,null,null,null,"その他の場合：",null,null,null,null,null,null,null,null,null,null,{"$f":"IF(ISERR(FIND(\"その他\",S39)),\"\",\"　\"&AH39)","v":""}]
[]
[]
[]
[null,"◆",null,"引込受点高さ[必須]",null,null,null,null,null,null,null,null,null,null,null,null,null,null,null,null,null,null,"m",null,null,null,null,null,null,null,null,null,null,null,"◆ 別紙扱いの場合○↓"]
[]
[null,"◆",null,"道路横断の有無[必須]",null,null,null,null,null,null,null,null,null,null,null,null,null,null,null,null,null,null,null,null,null,null,null,null,null,null,null,null,null,null,"単線結線図"]
[]
[null,"◆",null,"最寄電柱からの距離[必須]",null,null,null,null,null,null,null,null,null,null,null,null,null,null,null,null,null,null,"m",null,null,null,null,null,null,null,null,null,null,null,"位置図"]
[]
[null,"◆",null,"計器工事要否[必須]",null,null,null,null,null,null,null,null,null,null,null,null,null,null,null,null,null,null,null,null,null,null,null,null,null,null,null,null,null,null,"平面図"]
[]
[null,"◆",null,"計器取付高さ[必須]",null,null,null,null,null,null,null,null,null,null,null,null,null,null,null,null,null,null,"m"]
[]
[null,"◆",null,"電力計器箱の支給[必須]",null,null,null,null,null,null,null,null,null,null,null,null,null,null,null,null,null,null,null,null,null,null,null,null,null,null,null,null,null,null,null,null,null,null,null,null,null,null,null,null,"            "]
[]
[null,"◆",null,"引込柱Ｎｏ[必須]",null,null,null,null,null,null,null,null,null,null,null,null,null,null,null,null,null,null,null,null,null,null,null,"※12桁連続入力"]
[]
[null,"◆",null,"北電ＮＷの引込線・計測器工事を施工する会社指名の有無[必須]"]
[]
[null,null,null,"※受電柱やキュービクルの施工会社と同一会社での同調施工を希望する場合に限り申し受けますが、"]
[null,null,null,"   希望に沿えない場合があります"]
[null,null,null,"引込線施工希望会社"]
[]
[null,null,null,null,"会社名"]
[]
[null,null,null,null,"会社住所"]
[]
[null,null,null,null,"担当者名"]
[]
[null,null,null,null,"電話番号"]
[]
[null,null,null,"計測器施工希望会社"]
[]
[null,null,null,null,"会社名"]
[]
[null,null,null,null,"会社住所"]
[]
[null,null,null,null,"担当者名"]
[]
[null,null,null,null,"電話番号"]
[]
[null,"◆ケーブル線種　太さ・長さ［必須］",null,null,null,null,null,null,null,null,null,null,null,null,null,null,null,null,null,null,null,null,null,null,null,null,null,null,null,null,null,null,null,null,null,null,"mm2",null,null,null,null,null,null,null,"m"]
[]
[null,"◆第一開閉器容量［必須］",null,null,null,null,null,null,null,null,null,null,null,null,null,null,null,null,null,null,null,null,null,null,null,"A"]
[]
[null,"◆ＶＣＴ１次側　線種・太さ",null,null,null,null,null,null,null,null,null,null,null,null,null,null,null,null,null,null,null,null,null,null,null,null,null,null,null,null,null,null,null,null,"mm2"]
[]
[null,"◆ＶＣＴ２次側　線種・太さ",null,null,null,null,null,null,null,null,null,null,null,null,null,null,null,null,null,null,null,null,null,null,null,null,null,null,null,null,null,null,null,null,"mm2"]
[]
[null,"◆計量器とＶＣＴ間の二次配線こう長［必須］",null,null,null,null,null,null,null,null,null,null,null,null,null,null,null,null,null,null,null,null,null,null,null,null,null,null,null,"m"]
[]
[]
["お客さま電気設備図面（高圧用）"]
[]
[]
["お客さま",null,"住所\n(施工場所)",null,null,null,{"$f":"IF(S31<>\"\",S31,\"\")","v":""},null,null,null,null,null,null,null,null,null,null,null,null,null,null,null,null,null,null,null,null,"工事会社",null,null,null,null,null,"住所",null,{"$f":"IF(S9<>\"\",S9,\"\")","v":""}]
[]
[null,null,null,null,null,null,null,null,null,null,null,null,null,null,null,null,null,null,null,null,null,null,null,null,null,null,null,null,null,null,null,null,null,null,null,null,null,null,null,null,null,null,null,"TEL:",null,{"$f":"IF(S11<>\"\",S11,\"\")","v":""}]
[null,null,"氏名",null,null,null,{"$f":"IF(S33<>\"\",S33,\"\")","v":""},null,null,null,null,null,null,null,null,null,null,null,null,null,null,null,null,null,null,null,null,null,null,null,null,null,null,"社名（コード",null,null,null,null,{"$f":"W4&Y4&Z4","v":"　-"},null,null,null,null,null,null,"）"]
[null,null,null,null,null,null,null,null,null,null,null,null,null,null,null,null,null,null,null,null,null,null,null,null,null,null,null,null,null,null,null,null,null,{"$f":"IF(S7<>\"\",S7,\"\")","v":""}]
[]
["電気工事の種類",null,null,null,null,null,{"$f":"IF(S39<>\"\",LEFT(S39,2),\"\")","v":""},null,null,null,null,{"$f":"IF(S39<>\"\",MID(S39,4,3)&AR39,\"\")","v":""},null,null,null,null,null,null,null,null,null,null,null,null,null,null,null,"電気主任技術者",null,null,null,null,null,{"$f":"IF(S29<>\"\",S29,\"\")","v":""},null,null,null,null,null,null,null,null,null,null,null,null,null,null,null,null,null,null,null,null,null,null,null,"↓「電気設備図面」編集↓"]
[]
["単線結線図"]
[]
[]
[]
[null,null,null,null,null,null,null,null,null,null,null,null,null,null,null,null,null,null,null,null,null,null,null,null,null,null,null,null,null,null,null,null,null,null,null,null,null,null,null,null,null,null,null,null,null,null,null,null,null,null,null,null,null,null,null,null,null,"↓「単線結線図」編集↓"]
[]
[]
[null,null,null,null,null,null,null,null,null,null,null,null,null,null,null,null,null,null,null,null,null,null,null,null,null,null,null,null,null,null,null,null,null,null,null,null,null,null,null,null,null,null,null,null,null,null,null,null,null,null,null,null,null,null,null,null,"電源設備"]
[]
[]
[]
[]
[]
[]
[]
[]
[]
[null,null,null,null,null,null,null,null,null,null,null,null,null,null,null,null,{"$f":"IF(AQ45=\"○\",\"（別紙参照）\",\"\")","v":""}]
[]
[]
[]
[]
[]
[]
[]
[]
[]
[]
[]
[]
[]
[]
[]
[]
[]
[]
[]
[]
[]
[]
[]
[]
[]
[]
[]
[]
[]
[]
[]
[]
[]
["ケーブル線種\n太さ・長さ※",null,null,null,null,null,null,null,{"$f":"IF(AE81=1,\"CVT\",IF(AE81=2,\"CV-3C\",\"\"))","v":""},null,null,null,null,{"$f":"IF(AG81<>\"\",AG81,\"\")","v":""},null,null,null,"mm2",null,{"$f":"IF(AO81<>\"\",AO81,\"\")","v":""},null,null,null,"m"]
[null,null,null,null,null,null,null,null,null,null,null,null,null,null,null,null,null,null,null,null,null,null,null,null,null,null,null,"引込線・計測器の施工会社指名（参考）"]
["第一開閉器容量※",null,null,null,null,null,null,null,{"$f":"IF(V83<>\"\",V83,\"\")","v":""},null,null,null,null,null,null,null,null,null,null,null,null,null,null,"A",null,null,null,"計測器",null,null,null,"住所",null,{"$f":"IF(J75<>\"\",J75,\"\")","v":""}]
[null,null,null,null,null,null,null,null,null,null,null,null,null,null,null,null,null,null,null,null,null,null,null,null,null,null,null,null,null,null,null,null,null,null,null,null,null,null,null,null,null,null,null,"TEL:",null,{"$f":"IF(J79<>\"\",J79,\"\")","v":""}]
["ＶＣＴ１次側\n線種・太さ",null,null,null,null,null,null,null,{"$f":"IF(V85<>\"\",V85,\"\")","v":""},null,null,null,null,null,null,null,null,null,null,{"$f":"IF(AE85<>\"\",AE85,\"\")","v":""},null,null,null,"mm2",null,null,null,null,null,null,null,"社名",null,{"$f":"IF(J73<>\"\",J73,\"（希望なし）\")","v":"（希望なし）"},null,null,null,null,null,null,null,null,null,"担当者",null,null,{"$f":"IF(J77<>\"\",J77,\"\")","v":""}]
[]
["ＶＣＴ２次側\n線種・太さ",null,null,null,null,null,null,null,{"$f":"IF(V87<>\"\",V87,\"\")","v":""},null,null,null,null,null,null,null,null,null,null,{"$f":"IF(AE87<>\"\",AE87,\"\")","v":""},null,null,null,"mm2",null,null,null,"引込線",null,null,null,"住所",null,{"$f":"IF(J65<>\"\",J65,\"\")","v":""}]
[null,null,null,null,null,null,null,null,null,null,null,null,null,null,null,null,null,null,null,null,null,null,null,null,null,null,null,null,null,null,null,null,null,null,null,null,null,null,null,null,null,null,null,"TEL:",null,{"$f":"IF(J69<>\"\",J69,\"\")","v":""}]
["計測器とＶＣＴ間の\n二次配線こう長",null,null,null,null,null,null,null,{"$f":"IF(Z89<>\"\",Z89,\"\")","v":""},null,null,null,null,null,null,null,null,null,null,null,null,null,null,"m",null,null,null,null,null,null,null,"社名",null,{"$f":"IF(J63<>\"\",J63,\"（希望なし）\")","v":"（希望なし）"},null,null,null,null,null,null,null,null,null,"担当者",null,null,{"$f":"IF(J67<>\"\",J67,\"\")","v":""}]
[]
["主任電気工事士",null,null,null,null,null,null,null,{"$f":"\"第 \"&S13&\" 種電気工事士\"","v":"第  種電気工事士"},null,null,null,null,null,null,{"$f":"IF(T15<>\"\",T15,\"\")","v":""},null,null,null,null,null,null,null,null,null,null,null,"施工年月日",null,null,null,null,null,null,null,null,null,null,null,"年",null,null,null,null,null,"月",null,null,null,null,null,"日"]
[null,null,null,null,null,null,null,null,{"$f":"AB13","v":"北海道"},null,"第",{"$f":"IF(AI13<>\"\",AI13,\"\")","v":""},null,null,"号"]
["施工責任者",null,null,null,null,null,null,null,{"$f":"\"第 \"&S17&\" 種電気工事士\"","v":"第  種電気工事士"},null,null,null,null,null,null,{"$f":"IF(T19<>\"\",T19,\"\")","v":""},null,null,null,null,null,null,null,null,null,null,null,"注文者",null,"住所",null,null,null,{"$f":"IF(S35<>\"\",S35,\"\")","v":""}]
[null,null,null,null,null,null,null,null,{"$f":"AB17","v":"北海道"},null,"第",{"$f":"IF(AI17<>\"\",AI17,\"\")","v":""},null,null,"号"]
["作業者",null,null,null,null,null,null,null,{"$f":"\"第 \"&S21&\" 種電気工事士\"","v":"第  種電気工事士"},null,null,null,null,null,null,{"$f":"IF(T23<>\"\",T23,\"\")","v":""},null,null,null,null,null,null,null,null,null,null,null,null,null,"社名\n(氏名)",null,null,null,{"$f":"IF(S37<>\"\",S37,\"\")","v":""}]
[null,null,null,null,null,null,null,null,{"$f":"AB21","v":"北海道"},null,"第",{"$f":"IF(AI21<>\"\",AI21,\"\")","v":""},null,null,"号"]
[null,null,null,null,null,null,null,null,{"$f":"\"第 \"&S25&\" 種電気工事士\"","v":"第  種電気工事士"},null,null,null,null,null,null,{"$f":"IF(T27<>\"\",T27,\"\")","v":""}]
[null,null,null,null,null,null,null,null,{"$f":"AB25","v":"北海道"},null,"第",{"$f":"IF(AI25<>\"\",AI25,\"\")","v":""},null,null,"号"]
["位　置　図"]
[]
[]
[null,null,null,null,null,null,null,null,null,null,null,null,null,null,null,null,null,null,null,null,null,null,null,null,null,null,null,null,null,null,null,null,null,null,null,null,null,null,null,null,null,null,null,null,null,null,null,null,null,null,null,null,null,null,null,null,null,"↓「位置図」編集↓"]
[]
[]
[]
[]
[]
[]
[]
[]
[]
[]
[]
[]
[]
[]
[null,null,null,null,null,null,null,null,null,null,null,null,null,null,null,null,{"$f":"IF(AQ47=\"○\",\"（別紙参照）\",\"\")","v":""}]
[]
[]
[]
[]
[]
[]
[]
[]
[]
[]
[]
[]
[]
[]
[]
[]
[]
[]
[]
[]
[]
[]
[]
[]
[]
["平　面　図",null,null,null,null,null,null,null,null,null,null,null,null,null,null,null,null,null,null,null,null,null,null,null,null,null,null,null,null,null,null,null,null,null,null,null,null,null,null,null,null,null,null,null,null,null,null,null,null,null,null,null,null,null,null,null,null,"↓「平面図」編集↓"]
[]
[]
[null,null,null,null,null,null,null,null,null,null,null,null,null,null,null,null,null,null,null,null,null,null,null,null,null,null,null,null,null,null,null,null,null,null,null,null,null,null,null,null,null,null,null,null,null,null,null,null,null,null,null,null,null,null,null,null,null,"当社柱",null,null,null,null,null,null,null,"NTT柱"]
[]
[]
[]
[]
[]
[null,null,null,null,null,null,null,null,null,null,null,null,null,null,null,null,null,null,null,null,null,null,null,null,null,null,null,null,null,null,null,null,null,null,null,null,null,null,null,null,null,null,null,null,null,null,null,null,null,null,null,null,null,null,null,null,null,"先方柱",null,null,null,null,null,null,"ﾃｷｽﾄﾎﾞｯｸｽ",null,null,null,null,null,null,null,null,"引込線"]
[]
[null,null,null,null,null,null,null,null,null,null,null,null,null,null,null,null,{"$f":"IF(AQ49=\"○\",\"（別紙参照）\",\"\")","v":""}]
[]
[]
[]
[null,null,null,null,null,null,null,null,null,null,null,null,null,null,null,null,null,null,null,null,null,null,null,null,null,null,null,null,null,null,null,null,null,null,null,null,null,null,null,null,null,null,null,null,null,null,null,null,null,null,null,null,null,null,null,null,null,"家屋",null,null,null,null,null,null,null,"用地境界"]
[]
[]
[]
[]
[]
[null,null,null,null,null,null,null,null,null,null,null,null,null,null,null,null,null,null,null,null,null,null,null,null,null,null,null,null,null,null,null,null,null,null,null,null,null,null,null,null,null,null,null,null,null,null,null,null,null,null,null,null,null,null,null,null,null,"直線道路",null,null,null,null,null,null,null,"曲線道路"]
[]
[]
["引込受点高さ※",null,null,null,null,null,null,null,null,{"$f":"IF(S43<>\"\",S43,\"\")","v":""},null,null,null,null,null,null,"ｍ"]
[]
["道路横断の有無※",null,null,null,null,null,null,null,null,{"$f":"IF(Z45=1,\"有\",IF(Z45=2,\"無\",\"\"))","v":""}]
[null,null,null,null,null,null,null,null,null,null,null,null,null,null,null,null,null,null,null,null,null,null,null,null,null,null,null,null,null,null,null,null,null,null,null,null,null,null,null,null,null,null,null,null,null,null,null,null,null,null,null,null,null,null,null,null,null,"T字道路",null,null,null,null,null,null,null,"十字道路"]
["最寄電柱からの距離※",null,null,null,null,null,null,null,null,{"$f":"IF($S$47<>\"\",$S$47,\"\")","v":""},null,null,null,null,null,null,"ｍ"]
[]
["計器工事要否※",null,null,null,null,null,null,null,null,{"$f":"IF(Z49=1,\"要\",IF(Z49=2,\"不要\",\"\"))","v":""}]
[]
["計器取付高さ※",null,null,null,null,null,null,null,null,{"$f":"IF(S51<>\"\",S51,\"\")","v":""},null,null,null,null,null,null,"ｍ"]
[null,null,null,null,null,null,null,null,null,null,null,null,null,null,null,null,null,null,null,null,null,null,null,null,null,null,null,null,null,null,null,null,null,null,"引込柱Ｎｏ．※",null,null,null,null,null,null,"画",null,"区",null,"図",null,"番",null,"の",null,"号"]
["電力計器ＢＯＸ※",null,null,null,null,null,null,null,null,{"$f":"IF(Z53=1,\"要\",IF(Z53=2,\"不要\",\"\"))","v":""},null,null,null,null,null,null,null,null,null,"※は必要入力箇所",null,null,null,null,null,null,null,null,null,null,null,null,null,null,null,null,null,null,null,null,null,{"$f":"IF(S55<>\"\",LEFT(S55,2),\"\")","v":""},null,{"$f":"IF(S55<>\"\",MID(S55,3,2),\"\")","v":""},null,{"$f":"IF(S55<>\"\",MID(S55,5,2),\"\")","v":""},null,{"$f":"IF(S55<>\"\",MID(S55,7,2),\"\")","v":""},null,{"$f":"IF(S55<>\"\",MID(S55,9,2),\"\")","v":""},null,{"$f":"IF(S55<>\"\",RIGHT(S55,2),\"\")","v":""}]

{"sheet":"改訂履歴","index":1,"n_rows":5,"n_cols":3,"rows_kept":5,"cut":false,"hidden":false,"merged":[]}
["バージョン","更新日","更新内容"]
["1.0",null,"様式見直しに伴い新規制定"]
["1.1","2022-02-01","需要者工事と当社工事の同調施工の希望等の追加、入力方法の見直し"]
["1.2","2022-05-24","同調施工希望欄の表示を修正。初期化動作の不具合を修正。"]
["1.3","2024-04-01","免状番号のうち「都道府県」欄を直接入力へ変更"]

{"sheet":"平面図","index":2,"n_rows":0,"n_cols":0,"rows_kept":0,"cut":false,"hidden":true,"merged":[]}

{"sheet":"引込線立面図","index":3,"n_rows":0,"n_cols":0,"rows_kept":0,"cut":false,"hidden":true,"merged":[]}

{"sheet":"単線結線図","index":4,"n_rows":0,"n_cols":0,"rows_kept":0,"cut":false,"hidden":true,"merged":[]}